bitfinex/quotes_ETHUSD_20220105
["timestamp","ask_amount","ask_price","bid_price","bid_amount"]
[1641387622777,1.3199,3788.1,3787.9,0.66329054]
[1641387622977,1.3199,3788.1,3788.0,0.00284211]
[1641387623676,1.3199,3788.1,3788.0,1.69121287]
[1641387625326,1.40050933,3788.1,3788.0,1.69121287]
[1641387628771,8.32861259,3788.1,3787.6,3.50227534]
[1641387628971,1.32016,3788.0,3787.6,3.50227534]
[1641387629176,2.9,3787.8,3787.6,3.50227534]
[1641387629376,2.30785516,3787.7,3787.6,3.50227534]
[1641387629578,5.06746118,3787.9,3787.6,3.50227534]
[1641387629781,1.32025,3787.6,3787.0,6.83520349]
[1641387629978,0.66013,3787.4,3787.0,6.83520349]
[1641387630180,0.66013,3787.3,3787.1,0.00341055]
[1641387630578,0.01351474,3787.2,3787.1,0.00341055]
[1641387630782,0.08060933,3787.2,3787.1,0.00341055]
[1641387631177,0.66013,3787.1,3786.8,0.00511582]
[1641387631379,3.07722195,3787.0,3786.5,0.00682109]
[1641387632027,0.682,3786.9,3786.4,0.00738951]
[1641387632226,0.682,3786.9,3786.3,0.00795793]
[1641387632227,3.22331068,3786.8,3786.3,0.00795793]
[1641387632432,2.56316068,3786.8,3786.3,0.00795793]
[1641387632627,1.32055,3786.6,3786.2,0.00852636]
[1641387632828,3.28789627,3786.5,3786.2,0.00852636]
[1641387633230,3.58789627,3786.5,3786.0,0.0096632]
[1641387633630,1.32062,3786.2,3785.7,0.01136847]
[1641387633830,2.4195351,3786.1,3785.7,0.01136847]
[1641387634234,2.5504302,3786.3,3786.2,0.03502563]
[1641387634635,2.5504302,3786.3,3786.2,0.04355199]
[1641387634835,2.8504302,3786.3,3786.2,0.04355199]
[1641387635036,2.8504302,3786.3,3784.9,4.18640346]
[1641387635235,0.66038,3785.8,3784.9,4.18640346]
[1641387635434,0.66038,3785.4,3785.0,0.00682108]
[1641387635695,1.32075,3785.6,3785.0,0.00682108]
[1641387635893,0.01351474,3785.3,3785.0,0.00682108]
[1641387636094,0.08060933,3785.3,3785.0,0.00682108]
[1641387636294,2.53670368,3785.8,3785.0,0.00682108]
[1641387636499,1.32075,3785.9,3785.0,0.00682108]
[1641387636699,0.66038,3785.5,3785.0,0.00682108]
[1641387636900,0.66038,3785.3,3785.0,0.00682108]
[1641387637499,0.66038,3785.3,3784.8,0.00795793]
[1641387637703,0.66592928,3785.0,3784.8,0.00795793]
[1641387637899,1.32094,3785.1,3784.8,0.00795793]
[1641387638300,1.32094,3785.1,3784.4,0.01023162]
[1641387639323,1.32094,3785.1,3784.3,1.33164004]
[1641387639529,1.32094,3785.1,3784.4,0.01023162]
[1641387639731,0.66047,3785.0,3784.4,0.01023162]
[1641387640333,0.66047,3785.0,3784.4,0.04107514]
[1641387640729,0.66048,3784.7,3784.5,0.0096632]
[1641387640931,1.32096,3784.7,3784.5,0.0096632]
[1641387643587,0.66048,3784.7,3784.5,0.6701032]
[1641387643988,0.66048,3784.7,3784.6,0.00909477]
[1641387645889,0.66048,3784.7,3784.6,0.0399392]
[1641387646490,1.3209,3784.9,3784.6,0.0399392]
[1641387646690,0.66043,3784.9,3784.6,0.0399392]
[1641387646933,1.68806757,3785.5,3784.7,0.66893635]
[1641387647135,0.6604,3785.3,3784.7,0.66893635]
[1641387647333,0.6604,3785.3,3785.0,1.36861919]
[1641387647538,1.98116,3785.3,3785.0,1.36861919]
[1641387647737,1.98116,3785.3,3785.1,0.00625265]
[1641387648339,1.98116,3785.3,3785.1,0.59335856]
[1641387648538,0.66037,3785.4,3785.1,0.59335856]
[1641387648739,0.66037,3785.4,3785.2,0.00568423]
[1641387649840,0.66037,3785.4,3785.2,0.6603]
[1641387650242,0.36723757,3785.5,3785.3,0.00511581]
[1641387650442,3.757e-05,3785.5,3785.4,6.7]
[1641387650685,3.757e-05,3785.5,3785.4,7.7]
[1641387650882,3.757e-05,3785.5,3785.4,8.08654738]
[1641387651081,0.04487901,3785.7,3785.4,8.08654738]
[1641387651082,0.04487901,3785.7,3785.4,10.32230264]
[1641387651284,0.04487901,3785.7,3785.5,6.7]
[1641387651482,0.04487901,3785.7,3785.6,6.61008]
[1641387651682,0.04487901,3785.7,3785.6,6.61349054]
[1641387651883,0.04487901,3785.7,3785.6,7.91349054]
[1641387652083,7.901e-05,3785.7,3785.6,7.61349054]
[1641387652486,0.00017928,3785.8,3785.7,5.9]
[1641387652686,0.11630027,3786.3,3786.2,0.6601]
[1641387653289,0.11630027,3786.3,3786.2,2.98485459]
[1641387653485,0.11630027,3786.3,3786.2,0.6601]
[1641387653686,0.11630027,3786.3,3786.2,1.6601]
[1641387653894,0.11630027,3786.3,3786.2,3.03581423]
[1641387654086,0.11630027,3786.3,3786.2,4.26840056]
[1641387654346,0.11630027,3786.3,3786.2,6.54961987]
[1641387654537,0.0804569,3786.3,3786.2,6.54961987]
[1641387654737,0.0804569,3786.3,3786.2,7.41801987]
[1641387654936,0.0804569,3786.3,3786.2,7.44964344]
[1641387655137,0.0804569,3786.3,3786.2,5.13680056]
[1641387655335,0.0804569,3786.3,3786.2,7.42379326]
[1641387655540,0.0804569,3786.3,3786.2,7.40914372]
[1641387656137,0.0804569,3786.3,3786.2,5.13680056]
[1641387656438,0.0804569,3786.3,3786.2,4.26840056]
[1641387656638,0.0804569,3786.3,3786.2,6.53538543]
[1641387656838,0.0804569,3786.3,3786.2,4.26840056]
[1641387657040,0.0804569,3786.3,3786.2,6.56449265]
[1641387657238,0.0804569,3786.3,3786.2,6.54089312]
[1641387657441,0.0804569,3786.3,3786.2,6.53112279]
[1641387657639,0.0804569,3786.3,3786.2,6.5393196]
[1641387657840,0.0804569,3786.3,3786.2,6.57647426]
[1641387658282,0.0804569,3786.3,3786.2,4.26840056]
[1641387659389,0.0804569,3786.3,3786.2,6.53516514]
[1641387659590,0.0804569,3786.3,3786.2,6.55192358]
[1641387659787,0.0804569,3786.3,3786.2,6.52540505]
[1641387659988,0.0804569,3786.3,3786.2,6.63950936]
[1641387660189,0.0804569,3786.3,3786.2,6.58539446]
[1641387660389,0.0804569,3786.3,3786.2,6.62839361]
[1641387660589,0.0804569,3786.3,3786.2,6.53037729]
[1641387660790,0.0804569,3786.3,3786.2,6.56120881]
[1641387661591,0.0804569,3786.3,3786.2,6.56844029]
[1641387662828,0.0804569,3786.3,3786.2,5.90834029]
[1641387663025,0.0804569,3786.3,3786.2,3.63913208]
[1641387663226,0.0804569,3786.3,3786.2,2.26341785]
[1641387663631,0.0804569,3786.3,3786.2,1.26341785]
[1641387664231,0.0804569,3786.3,3785.8,4.38200681]
[1641387664431,0.66022,3786.1,3785.9,2.30805537]
[1641387664631,0.66022,3786.1,3785.9,0.00170527]
[1641387664831,0.66022,3786.1,3786.0,0.00113684]
[1641387665131,1.32043,3786.2,3785.9,0.00170527]
[1641387665331,1.32043,3786.2,3785.9,3.52541523]
[1641387665775,1.32043,3786.2,3786.0,0.00113684]
[1641387666575,1.32043,3786.2,3785.7,0.00284211]
[1641387666576,1.98071,3786.2,3785.7,0.00284211]
[1641387666776,2.28071,3786.2,3785.7,0.00284211]
[1641387666977,0.66033,3786.0,3785.7,0.00284211]
[1641387667776,0.96033,3786.0,3785.7,0.00284211]
[1641387667978,0.66034,3785.9,3785.7,0.00284211]
[1641387668379,0.66034,3785.9,3785.6,0.00341054]
[1641387668580,0.66034,3785.9,3785.6,3.5271205]
[1641387668883,0.96034,3785.9,3785.7,0.00284211]
[1641387670034,0.66034,3785.9,3785.7,0.00284211]
[1641387670231,0.66033,3786.0,3785.7,0.00284211]
[1641387671237,0.66033,3786.0,3785.7,3.52655207]
[1641387671637,0.66033,3786.0,3785.8,0.00227369]
[1641387671937,0.66033,3786.0,3785.8,1.00227369]
[1641387672337,0.66033,3786.0,3785.9,0.00170527]
[1641387672738,0.66033,3786.0,3785.9,3.52541523]
[1641387672939,0.06399208,3786.0,3785.9,3.52541523]
[1641387673178,0.06399208,3786.0,3785.9,0.00170527]
[1641387673578,0.06399208,3786.0,3785.8,0.03083426]
[1641387673984,0.06399208,3786.0,3785.9,0.00170527]
[1641387674981,0.00436423,3786.4,3785.9,0.00170527]
[1641387675387,0.00436423,3786.4,3786.2,1.08318136]
[1641387675781,0.00436423,3786.4,3786.3,0.62778438]
[1641387676183,0.00550108,3786.4,3786.3,0.62778438]
[1641387676585,0.00550108,3786.4,3786.3,1.62778438]
[1641387677329,0.00113685,3786.4,3786.3,0.62778438]
[1641387677729,0.00113685,3786.4,3786.2,4.60003674]
[1641387678330,0.00113685,3786.4,3786.2,1.08318136]
[1641387678935,0.00113685,3786.4,3786.2,1.67291753]
[1641387679139,1.32155685,3786.4,3786.1,0.66011]
[1641387679537,1.32155685,3786.4,3786.0,3.51685538]
[1641387680606,0.00113685,3786.4,3786.1,1.6602]
[1641387681303,0.00113685,3786.4,3786.2,0.03083102]
[1641387681502,0.00113685,3786.4,3786.3,7.8299]
[1641387681900,0.00113685,3786.4,3786.3,9.4299]
[1641387684336,0.00113685,3786.4,3786.3,10.58228974]
[1641387685340,0.00113685,3786.4,3786.3,4.73228974]
[1641387686541,0.00113685,3786.4,3786.3,9.11429655]
[1641387686743,8.031e-05,3786.4,3786.3,8.11429655]
[1641387686945,8.031e-05,3786.4,3786.3,7.51429655]
[1641387687142,8.031e-05,3786.4,3786.3,7.81429655]
[1641387687443,8.031e-05,3786.4,3786.3,3.43228974]
[1641387688077,0.66005,3786.6,3786.3,4.13228974]
[1641387688078,0.15192774,3786.6,3786.3,4.13228974]
[1641387688284,0.15192774,3786.6,3786.3,4.66034914]
[1641387688480,0.15192774,3786.6,3786.4,1.66007]
[1641387689783,0.15192774,3786.6,3786.5,1.15238974]
[1641387690184,0.15306459,3786.6,3786.5,1.15238974]
[1641387690986,0.00113685,3786.6,3786.5,4.94964941]
[1641387691486,0.00113685,3786.6,3786.5,5.94964941]
[1641387691685,0.00113685,3786.6,3786.5,6.45238974]
[1641387691934,0.00113685,3786.6,3786.5,6.83439655]
[1641387692536,0.00113685,3786.6,3786.5,2.45238974]
[1641387692736,0.00113685,3786.6,3786.5,2.15238974]
[1641387692935,0.00113685,3786.6,3786.5,1.15238974]
[1641387693137,0.00113685,3786.6,3786.5,2.15238974]
[1641387693336,0.00113685,3786.6,3786.5,1.18321798]
[1641387693537,0.00113685,3786.6,3786.5,2.18321798]
[1641387693739,0.00113685,3786.6,3786.5,5.63321798]
[1641387694040,0.00113685,3786.6,3786.5,6.63321798]
[1641387694541,0.00113685,3786.6,3786.5,6.93321798]
[1641387695587,0.00113685,3786.6,3786.5,2.48321798]
[1641387695985,0.00113685,3786.6,3786.5,1.48321798]
[1641387696184,0.00113685,3786.6,3786.5,2.48321798]
[1641387696585,0.00113685,3786.6,3786.5,6.33321798]
[1641387696987,0.08159375,3786.6,3786.5,6.33321798]
[1641387697788,0.00618562,3786.6,3786.5,6.33321798]
[1641387697987,0.12248589,3786.6,3786.5,11.01522479]
[1641387698186,0.12248589,3786.6,3786.5,13.71265294]
[1641387698990,0.12248589,3786.6,3786.5,9.33064613]
[1641387698991,0.23878616,3786.6,3786.5,9.33064613]
[1641387700037,0.16117928,3786.7,3786.6,6.7]
[1641387700231,0.16117928,3786.7,3786.6,9.96056273]
[1641387700436,0.16117928,3786.7,3786.6,10.96056273]
[1641387700633,0.11630027,3786.9,3786.7,6.7]
[1641387700832,0.11630027,3786.9,3786.8,9.26598087]
[1641387701033,0.11630027,3786.9,3786.8,10.26598087]
[1641387701235,0.24029255,3787.4,3786.9,6.7]
[1641387701433,0.24029255,3787.4,3786.8,11.51917061]
[1641387701434,0.24029255,3787.4,3787.0,9.46373445]
[1641387701635,0.24029255,3787.4,3787.0,10.76373445]
[1641387701835,0.00436423,3787.3,3787.0,10.76373445]
[1641387702033,0.00436423,3787.3,3787.0,11.14573445]
[1641387702434,0.00436423,3787.3,3787.0,11.67358705]
[1641387702638,0.68028439,3787.2,3787.0,12.82597679]
[1641387703087,0.59052637,3787.2,3787.0,12.82597679]
[1641387703287,0.12513433,3787.4,3787.2,0.65987]
[1641387703488,0.12513433,3787.4,3787.3,6.95849093]
[1641387703690,0.14417553,3787.4,3787.3,6.95849093]
[1641387703887,0.14417553,3787.4,3787.3,7.95849093]
[1641387704089,0.14417553,3787.4,3787.3,9.11088067]
[1641387704491,0.14417553,3787.4,3787.3,10.37497248]
[1641387704692,0.17319285,3787.4,3787.3,10.37497248]
[1641387705093,0.17319285,3787.4,3787.3,13.87497248]
[1641387705592,0.17319285,3787.4,3787.3,14.17497248]
[1641387705793,0.17319285,3787.4,3787.3,14.20579472]
[1641387705993,0.17319285,3787.4,3787.3,13.90579472]
[1641387706192,0.17319285,3787.4,3787.3,10.40579472]
[1641387706837,0.17319285,3787.4,3787.3,6.10579472]
[1641387707633,0.12513434,3787.4,3787.3,6.10579472]
[1641387707837,0.12513434,3787.4,3787.3,5.80579472]
[1641387708436,0.12513434,3787.4,3787.3,6.00524282]
[1641387708836,0.12513434,3787.4,3787.3,4.04730379]
[1641387709037,0.12513434,3787.4,3787.3,3.44730379]
[1641387710038,0.12513434,3787.4,3787.3,2.18321198]
[1641387710441,0.12513434,3787.4,3787.3,1.18321198]
[1641387711491,2.62513434,3787.4,3787.3,1.18321198]
[1641387711690,0.12513434,3787.4,3787.3,1.18321198]
[1641387711892,2.82513434,3787.4,3787.2,1.30879226]
[1641387712091,4.44535434,3787.4,3787.2,1.30879226]
[1641387712291,0.00397896,3787.3,3787.2,1.30879226]
[1641387712592,0.00397896,3787.3,3787.1,1.30839634]
[1641387712994,0.00341054,3787.2,3787.1,1.30839634]
[1641387713391,0.00341054,3787.2,3786.8,3.06380448]
[1641387713691,0.00284211,3787.1,3786.8,1.31998]
[1641387713893,0.00284211,3787.1,3786.9,0.5279654]
[1641387714093,0.00227369,3787.0,3786.9,0.5279654]
[1641387714329,0.00227369,3787.0,3786.9,1.1879254]
[1641387714536,0.00227369,3787.0,3786.9,7.43174988]
[1641387714936,0.02901732,3787.1,3787.0,2.55]
[1641387715136,0.02901732,3787.1,3787.0,3.55]
[1641387715937,0.02901732,3787.1,3787.0,1.65999]
[1641387716237,0.02901732,3787.1,3787.0,0.65999]
[1641387717238,0.02901732,3787.1,3787.0,3.43692404]
[1641387717439,0.02901732,3787.1,3787.0,7.69081498]
[1641387717739,0.02901732,3787.1,3787.0,8.69081498]
[1641387717939,0.00113685,3787.2,3787.0,9.39462143]
[1641387718182,0.00113685,3787.2,3787.1,9.01968]
[1641387718385,0.65987,3787.7,3787.6,0.73921807]
[1641387720288,0.65987,3787.7,3787.5,2.1877105]
[1641387720786,0.00227369,3787.6,3787.5,2.1877105]
[1641387720991,0.00227369,3787.6,3787.2,1.3008012]
[1641387721188,0.66215369,3787.6,3787.2,1.97144916]
[1641387721387,0.00170527,3787.5,3787.3,1.05102612]
[1641387721591,1.54564704,3788.1,3787.4,8.01968]
[1641387721592,0.00436422,3788.1,3787.4,8.01968]
[1641387721835,0.00436422,3788.1,3787.6,0.9235732]
[1641387722033,0.00436422,3788.1,3787.7,0.382]
[1641387722034,0.00284212,3788.0,3787.7,0.382]
[1641387722436,0.00227369,3787.9,3787.8,6.07352698]
[1641387722735,0.00227369,3787.9,3787.8,7.53529538]
[1641387722934,0.00227369,3787.9,3787.8,8.19496538]
[1641387723135,0.00227369,3787.9,3787.8,8.49496538]
[1641387723337,0.00227369,3787.9,3787.8,9.69496538]
[1641387723542,0.00436422,3788.1,3787.9,6.7]
[1641387723741,0.00436422,3788.1,3788.0,9.76827792]
[1641387723938,1.51926,3789.3,3788.1,6.7]
[1641387724139,0.2,3789.3,3788.2,4.17889291]
[1641387724339,0.2,3789.3,3789.1,0.74879423]
[1641387725780,0.2,3789.3,3789.2,0.65956]
[1641387726183,0.20795793,3789.3,3789.2,1.65956]
[1641387728286,0.20795793,3789.3,3789.2,5.80956]
[1641387728689,0.20795793,3789.3,3789.2,8.07933414]
[1641387728888,0.20795793,3789.3,3789.2,8.37933414]
[1641387729353,0.20795793,3789.3,3789.2,9.27493414]
[1641387729944,0.20795793,3789.3,3789.2,9.22776684]
[1641387730346,0.00421856,3789.7,3789.3,6.7]
[1641387730544,0.00421856,3789.7,3789.4,3.58864239]
[1641387730745,0.00170527,3789.6,3789.5,1.1209604]
[1641387730945,0.00170527,3789.6,3789.5,3.54687989]
[1641387731145,0.00170527,3789.6,3789.5,4.84687989]
[1641387731352,0.21,3789.8,3789.6,6.2]
[1641387731547,0.21,3789.8,3789.7,8.05943107]
[1641387731745,0.21,3789.8,3789.7,8.19304198]
[1641387731947,0.00421856,3790.0,3789.8,7.35933]
[1641387732147,0.00421856,3790.0,3789.9,9.00591715]
[1641387732347,0.00421856,3790.0,3789.9,9.10671715]
[1641387732548,0.00421856,3790.0,3789.9,9.10511715]
[1641387732750,0.00421856,3790.0,3789.9,9.10831715]
[1641387732948,0.00421856,3790.0,3789.9,9.00591715]
[1641387733187,3.290752,3790.2,3789.9,9.10591715]
[1641387733384,3.290752,3790.2,3789.9,9.00591715]
[1641387733583,3.290752,3790.2,3789.9,9.30591715]
[1641387733584,0.00284212,3790.1,3789.9,9.30591715]
[1641387733785,0.00284212,3790.1,3790.0,5.5210713]
[1641387733990,3.290752,3790.2,3790.0,6.2030713]
[1641387734184,3.290752,3790.2,3790.1,7.92147619]
[1641387734390,3.290752,3790.2,3790.1,8.30347619]
[1641387734589,3.29416254,3790.2,3790.1,7.09132]
[1641387734989,3.29416254,3790.2,3790.1,9.30761084]
[1641387736833,0.231525,3790.7,3790.2,6.7]
[1641387737037,0.2431013,3791.1,3790.5,6.7]
[1641387737240,6.14,3791.5,3791.0,0.01235477]
[1641387737440,6.14,3791.5,3791.1,0.382]
[1641387737637,0.2552563,3791.6,3791.3,6.7]
[1641387737837,0.2552563,3791.6,3791.4,0.382]
[1641387738039,0.2552563,3791.6,3791.4,1.81976761]
[1641387738237,0.2552563,3791.6,3791.5,7.3098]
[1641387738438,0.2680191,3792.1,3791.6,8.67696]
[1641387738637,0.2680191,3792.1,3791.7,0.382]
[1641387738838,0.2680191,3792.1,3791.7,1.382]
[1641387739039,0.2680191,3792.1,3791.8,0.4613156]
[1641387739245,0.2180191,3792.1,3791.9,1.31797]
[1641387739439,0.2180191,3792.1,3791.2,0.10193684]
[1641387739739,0.2180191,3792.1,3791.5,0.65919]
[1641387741286,0.2180191,3792.1,3791.6,0.4613987]
[1641387741485,0.2180191,3792.1,3791.8,0.65914]
[1641387743186,0.2180191,3792.1,3791.8,0.95914]
[1641387743387,0.2180191,3792.1,3791.9,2.01909256]
[1641387743587,0.2180191,3792.1,3792.0,4.45]
[1641387743588,0.21995332,3792.1,3792.0,4.45]
[1641387743790,0.21995332,3792.1,3792.0,4.75]
[1641387743989,0.22393229,3792.1,3792.0,1.3]
[1641387744843,0.22393229,3792.1,3792.0,0.4613133]
[1641387745046,0.22393229,3792.1,3792.0,1.7613133]
[1641387745245,0.22393229,3792.1,3792.0,0.7613133]
[1641387745442,0.22393229,3792.1,3792.0,1.7613133]
[1641387745842,0.22393229,3792.1,3792.0,0.7613133]
[1641387746045,0.28563866,3792.5,3792.1,6.7]
[1641387746343,0.00170527,3792.4,3792.2,4.38680798]
[1641387746542,0.00170527,3792.4,3792.3,9.13881017]
[1641387746746,0.28563866,3792.5,3792.4,6.0]
[1641387746945,0.28563866,3792.5,3792.4,10.0505601]
[1641387747250,0.2954911,3793.0,3792.6,1.31762]
[1641387747543,0.00284212,3792.9,3792.6,2.6219539]
[1641387747944,0.00227369,3792.8,3792.6,2.9219539]
[1641387748186,0.00227369,3792.8,3792.7,9.29310278]
[1641387748483,0.2954911,3793.0,3792.7,1.65881]
[1641387748983,0.00284212,3792.9,3791.8,3.0401845]
[1641387749391,0.00227369,3792.8,3791.9,0.00284212]
[1641387749685,0.2954911,3793.0,3791.9,0.00284212]
[1641387749686,0.24776479,3793.0,3791.9,0.00284212]
[1641387749889,0.24776479,3793.0,3791.9,0.00511581]
[1641387750088,0.24776479,3793.0,3792.1,0.65905]
[1641387750487,0.24776479,3793.0,3792.2,0.00341054]
[1641387750688,0.65905,3792.6,3792.2,0.00341054]
[1641387750988,0.65905,3792.6,3792.5,1.27727504]
[1641387751388,0.65905,3792.6,3792.5,1.27898031]
[1641387751589,1.62441727,3792.6,3792.5,1.27898031]
[1641387752238,2.94259727,3792.7,3792.5,0.00170527]
[1641387752740,2.89259727,3792.7,3792.5,0.00170527]
[1641387753039,1.97729,3792.9,3792.5,0.00170527]
[1641387753040,0.95908,3792.9,3792.5,0.00170527]
[1641387753840,0.95908,3792.9,3792.1,0.00397896]
[1641387754040,1.31818,3792.7,3792.1,0.00397896]
[1641387754239,1.31818,3792.7,3792.1,1.29918321]
[1641387754444,0.65911,3792.4,3792.1,1.29520425]
[1641387754645,0.65911,3792.4,3792.2,0.00341054]
[1641387755889,0.65911,3792.4,3792.0,0.65907]
[1641387756290,0.65911,3792.5,3792.2,0.03078218]
[1641387756690,0.65901,3792.7,3792.3,0.00284212]
[1641387757390,0.65901,3792.7,3792.3,1.29959182]
[1641387757791,0.65905,3792.6,3792.4,0.00227369]
[1641387758292,0.65905,3792.6,3792.3,0.00284212]
[1641387758491,0.65905,3792.6,3792.4,0.65902]
[1641387758693,0.65905,3792.6,3792.3,1.2993612]
[1641387758892,0.65905,3792.6,3792.5,0.00170527]
[1641387759091,0.65905,3792.6,3792.4,0.00227369]
[1641387759941,0.65905,3792.6,3792.3,0.00284212]
[1641387760945,0.65905,3792.6,3792.4,0.65902]
[1641387761443,0.65905,3792.6,3792.5,0.00170527]
[1641387762044,0.65905,3792.6,3792.3,0.00284212]
[1641387762844,0.65905,3792.6,3792.1,1.30449547]
[1641387763099,0.65906,3792.5,3792.3,0.65905]
[1641387763491,0.65906,3792.5,3792.4,0.00227369]
[1641387764091,0.65905,3792.6,3792.4,0.00227369]
[1641387764696,0.00081017,3792.5,3792.4,0.00227369]
[1641387765899,0.00081017,3792.5,3792.4,8.38504249]
[1641387766097,0.00081017,3792.5,3792.4,9.42275]
[1641387766298,6.01719278,3793.8,3792.4,9.42275]
[1641387766497,2.38429278,3793.6,3792.7,2.65948968]
[1641387766950,1.6280756,3793.4,3792.7,2.65948968]
[1641387767153,1.6280756,3793.4,3792.8,1.0]
[1641387767352,0.90666479,3793.0,3792.8,1.0]
[1641387767654,0.90666479,3793.0,3792.7,1.04088]
[1641387768252,0.90666479,3793.0,3792.7,2.36269222]
[1641387768453,0.90666479,3793.0,3792.7,3.36269222]
[1641387768654,0.90666479,3793.0,3792.8,1.3007688]
[1641387768853,0.3102656,3793.4,3793.0,0.65887]
[1641387769055,0.3102656,3793.4,3793.1,0.382]
[1641387769253,0.3102656,3793.4,3793.1,0.682]
[1641387769658,0.3102656,3793.4,3793.1,1.9827688]
[1641387770057,0.3102656,3793.4,3793.1,2.9827688]
[1641387770258,0.3102656,3793.4,3793.1,1.9827688]
[1641387770463,0.3102656,3793.4,3793.2,1.65879]
[1641387770689,0.00540265,3793.4,3793.2,2.3415588]
[1641387770887,0.00540265,3793.4,3793.2,3.3415588]
[1641387771086,0.00540265,3793.4,3793.3,1.3007688]
[1641387771488,0.00540265,3793.4,3793.3,6.88e-05]
[1641387771489,2.60881319,3793.4,3793.3,6.88e-05]
[1641387771687,0.00881319,3793.4,3792.8,4.18239988]
[1641387771889,0.30881319,3793.4,3792.8,4.18239988]
[1641387772087,0.00284212,3793.3,3792.8,4.18239988]
[1641387772288,0.00284212,3793.3,3792.8,2.90512484]
[1641387772490,0.00540265,3793.4,3792.8,0.86697712]
[1641387772491,0.0022737,3793.2,3792.8,0.86697712]
[1641387772991,0.00170527,3793.1,3792.8,0.86697712]
[1641387773389,0.00113685,3793.0,3792.8,0.8362]
[1641387773796,0.65913,3792.7,3792.5,0.00170527]
[1641387774094,0.65913,3792.7,3791.9,0.00511581]
[1641387774351,0.65913,3792.7,3792.0,0.65911]
[1641387774743,0.65913,3792.7,3792.1,1.32200896]
[1641387775042,0.65905,3792.3,3792.2,0.00341054]
[1641387776445,0.65905,3792.3,3792.2,2.17217534]
[1641387776647,0.65905,3792.3,3792.2,1.00341054]
[1641387776947,0.65905,3792.3,3792.2,3.17429094]
[1641387777146,0.65905,3792.3,3792.2,1.00341054]
[1641387777547,0.65905,3792.3,3792.2,0.00341054]
[1641387777747,0.65905,3792.3,3792.2,3.47159477]
[1641387778193,0.65905,3792.3,3792.2,4.47159477]
[1641387778595,0.65905,3792.3,3792.2,6.64775119]
[1641387778793,0.65905,3792.3,3792.2,1.00341054]
[1641387779193,0.6591,3792.5,3792.2,1.00341054]
[1641387779393,0.00417162,3792.7,3792.3,0.65895]
[1641387779602,0.00417162,3792.7,3792.4,2.34827118]
[1641387779796,0.00417162,3792.7,3792.4,1.32003369]
[1641387779995,0.00417162,3792.7,3792.5,0.00170527]
[1641387780396,0.00417162,3792.7,3792.5,0.66058527]
[1641387780895,0.00417162,3792.7,3792.6,0.00113685]
[1641387781096,0.75116536,3793.6,3792.6,0.00113685]
[1641387781097,0.3257789,3793.9,3792.7,6.7]
[1641387781297,0.3257789,3793.9,3792.8,1.69958]
[1641387781496,0.3257789,3793.9,3792.8,2.80278]
[1641387781497,0.00113685,3793.0,3792.8,2.80278]
[1641387781697,0.00113685,3793.0,3792.9,6.2]
[1641387781943,0.00284212,3793.3,3792.9,1.13919]
[1641387782143,0.3257789,3793.9,3792.9,0.382]
[1641387782343,0.3257789,3793.9,3792.9,0.95960247]
[1641387782344,0.0022737,3793.2,3792.9,0.95960247]
[1641387782544,0.0022737,3793.2,3793.1,1.31768]
[1641387782745,0.00957426,3793.4,3793.1,1.31768]
[1641387782949,0.66848426,3793.4,3792.8,1.28386182]
[1641387783252,0.65897,3793.2,3792.8,1.28386182]
[1641387783648,0.00170527,3793.1,3792.8,1.28386182]
[1641387784048,0.00113685,3793.0,3792.8,1.28386182]
[1641387784449,0.00170527,3793.1,3792.8,1.28386182]
[1641387784650,0.00170527,3793.1,3792.6,0.00113685]
[1641387784651,0.66077527,3793.1,3792.6,0.00113685]
[1641387784850,0.65898,3792.9,3792.6,0.00113685]
[1641387785696,0.65898,3792.9,3792.6,1.28499867]
[1641387785899,1.31796,3792.9,3792.6,1.28499867]
[1641387786294,0.65898,3792.9,3792.8,0.65899]
[1641387789560,0.65898,3792.9,3792.8,1.94285182]
[1641387790559,0.65898,3792.9,3792.8,0.65899]
[1641387791160,0.65898,3792.9,3792.7,1.28386182]
[1641387791558,1.31798,3792.9,3792.7,1.28386182]
[1641387791759,1.31798,3792.9,3792.6,1.66016685]
[1641387791960,1.31798,3792.9,3792.6,0.66016685]
[1641387792561,1.31798,3792.9,3792.6,0.00113685]
[1641387792761,1.31798,3792.9,3792.7,1.32195697]
[1641387792762,7.16048372,3792.8,3792.7,1.32195697]
[1641387793089,7.16048372,3792.8,3792.5,1.28386182]
[1641387793090,1.97771,3792.7,3792.5,1.28386182]
[1641387793288,2.35971,3792.7,3792.5,1.28386182]
[1641387793488,2.35971,3792.7,3791.8,1.28830015]
[1641387793693,0.6592588,3792.3,3791.8,1.28830015]
[1641387793890,3.2962875,3792.4,3791.9,0.00227369]
[1641387794694,1.3185075,3792.1,3791.9,0.00227369]
[1641387795093,1.3185075,3792.1,3791.8,0.03078258]
[1641387798243,1.3185075,3792.1,3791.9,1.71773354]
[1641387798441,6.3185075,3792.1,3791.9,1.71773354]
[1641387798640,6.3185075,3792.1,3792.0,0.00170527]
[1641387799342,5.65926,3792.1,3792.0,0.00170527]
[1641387799747,5.95926,3792.1,3792.0,0.00170527]
[1641387804019,5.95926,3792.1,3792.0,1.30183833]
[1641387805446,5.65926,3792.1,3792.0,1.30183833]
[1641387807049,5.95926,3792.1,3792.0,1.30183833]
[1641387807249,5.95926,3792.1,3792.0,0.00170527]
[1641387807449,6.25926,3792.1,3792.0,0.00170527]
[1641387807649,6.25926,3792.1,3791.8,0.00284211]
[1641387807951,6.9184854,3792.1,3791.8,0.00284211]
[1641387808193,1.31848,3792.0,3791.8,0.00284211]
[1641387811602,1.31848,3792.0,3791.9,0.54150558]
[1641387811840,1.31848,3792.0,3791.8,0.66204211]
[1641387812237,1.31848,3792.0,3791.9,0.03078439]
[1641387813241,1.31848,3792.0,3791.9,1.23794316]
[1641387814245,1.31848,3792.0,3791.9,0.03078439]
[1641387815045,1.31848,3792.0,3791.9,1.23794316]
[1641387815246,1.31848,3792.0,3791.9,0.03078439]
[1641387815892,1.31848,3792.0,3791.9,1.23794316]
[1641387819356,1.31848,3792.0,3791.4,1.30013306]
[1641387819357,8.31848,3792.0,3791.4,1.30013306]
[1641387819558,0.6594023,3791.7,3791.2,1.30013306]
[1641387819752,0.6594023,3791.7,3790.4,3.0355]
[1641387819753,1.31903,3791.6,3790.4,3.0355]
[1641387819952,0.682,3791.7,3791.3,0.00113685]
[1641387820154,1.64942591,3791.6,3791.3,0.00113685]
[1641387820354,1.64942591,3791.6,3790.4,2.34590068]
[1641387820355,1.3189987,3791.1,3790.4,2.34590068]
[1641387820552,1.3189987,3791.1,3790.5,0.00454739]
[1641387820553,0.6595,3790.7,3790.5,0.00454739]
[1641387820752,1.3189911,3790.7,3790.5,0.00454739]
[1641387820952,1.3189911,3790.7,3790.2,0.00625266]